{"text_format":"3","workbook":"xlsx","n_sheets":4,"sheets":["Жазу тақтасы","Бюджет","Баптау","диаграмма деректер"],"not_rendered":{"charts":2,"images":1,"defined_names":42},"read":"whole","date_system":"1900"}

{"sheet":"Жазу тақтасы","index":0,"n_rows":13,"n_cols":14,"rows_kept":13,"merged":[[2,0,4,2],[6,0,8,2],[10,0,12,2]]}
[{"$nulls":13},{"$f":"БюджетАтауы&\" ИНТЕРАКТИВТІ БЮДЖЕТІ\"","v":"АХМЕТОВТАР ЖАНҰЯСЫ 2012 ИНТЕРАКТИВТІ БЮДЖЕТІ"}]
[]
[{"$f":"'диаграмма деректер'!C38","v":{"v":4000,"d":"₸4,000"}}]
[]
[{"$nulls":3},"кіріс"]
[]
[{"$f":"'диаграмма деректер'!C39","v":{"v":5933,"d":"₸5,933"}}]
[]
[{"$nulls":3},"шығындар"]
[]
[{"$f":"'диаграмма деректер'!D40& \"₸\"&'диаграмма деректер'!C40","v":"-₸1933"}]
[]
[{"$nulls":3},"ақша айналымы"]

{"sheet":"Бюджет","index":1,"n_rows":131,"n_cols":16,"rows_kept":131,"merged":[[18,1,18,13],[27,1,27,13],[36,1,36,13],[45,1,45,13],[54,1,54,13],[61,1,61,13],[68,1,68,13],[75,1,75,13],[82,1,82,13],[89,1,89,13],[96,1,96,13],[103,1,103,13],[110,1,110,13],[117,1,117,13],[124,1,124,13]]}
[null,null,"қаң","ақп","нау","сәу","мам","мау","шіл","там","қыр","қаз","қар","жел","жыл","орт"]
[]
[]
[]
[null,"Бастапқы баланс",1000]
[null,"Жалпы кіріс",{"$f":"SUM(Кіріскестесі[jan])","v":4222},{"$f":"SUM(Кіріскестесі[feb])","v":9033},{"$f":"SUM(Кіріскестесі[mar])","v":4000},{"$f":"SUM(Кіріскестесі[apr])","v":4045},{"$f":"SUM(Кіріскестесі[may])","v":9000},{"$f":"SUM(Кіріскестесі[jun])","v":1525},{"$f":"SUM(Кіріскестесі[jul])","v":1500},{"$f":"SUM(Кіріскестесі[aug])","v":6500},{"$f":"SUM(Кіріскестесі[sep])","v":4000},{"$f":"SUM(Кіріскестесі[oct])","v":4000},{"$f":"SUM(Кіріскестесі[nov])","v":9000},{"$f":"SUM(Кіріскестесі[dec])","v":4000},{"$f":"SUM(Кіріскестесі[year])","v":60825},{"$f":"O6/12","v":{"v":5068.75,"d":"5069"}}]
[null,"Жалпы шығын",{"$f":"SUM(ШығынСанаты_01кестесі[jan],ШығынСанаты_02кестесі[jan],ШығынСанаты_03кестесі[jan],ШығынСанаты_04кестесі[jan],ШығынСанаты_05кестесі[jan],ШығынСанаты_06кестесі[jan],ШығынСанаты_07кестесі[jan],ШығынСанаты_08кестесі[jan],ШығынСанаты_09кестесі[jan],ШығынСанаты_10кестесі[jan],ШығынСанаты_11кестесі[jan],ШығынСанаты_12кестесі[jan],ШығынСанаты_13кестесі[jan],ШығынСанаты_14кестесі[jan],ШығынСанаты_15кестесі[jan])","v":7936},{"$f":"SUM(ШығынСанаты_01кестесі[feb],ШығынСанаты_02кестесі[feb],ШығынСанаты_03кестесі[feb],ШығынСанаты_04кестесі[feb],ШығынСанаты_05кестесі[feb],ШығынСанаты_06кестесі[feb],ШығынСанаты_07кестесі[feb],ШығынСанаты_08кестесі[feb],ШығынСанаты_09кестесі[feb],ШығынСанаты_10кестесі[feb],ШығынСанаты_11кестесі[feb],ШығынСанаты_12кестесі[feb],ШығынСанаты_13кестесі[feb],ШығынСанаты_14кестесі[feb],ШығынСанаты_15кестесі[feb])","v":5243},{"$f":"SUM(ШығынСанаты_01кестесі[mar],ШығынСанаты_02кестесі[mar],ШығынСанаты_03кестесі[mar],ШығынСанаты_04кестесі[mar],ШығынСанаты_05кестесі[mar],ШығынСанаты_06кестесі[mar],ШығынСанаты_07кестесі[mar],ШығынСанаты_08кестесі[mar],ШығынСанаты_09кестесі[mar],ШығынСанаты_10кестесі[mar],ШығынСанаты_11кестесі[mar],ШығынСанаты_12кестесі[mar],ШығынСанаты_13кестесі[mar],ШығынСанаты_14кестесі[mar],ШығынСанаты_15кестесі[mar])","v":5933},{"$f":"SUM(ШығынСанаты_01кестесі[apr],ШығынСанаты_02кестесі[apr],ШығынСанаты_03кестесі[apr],ШығынСанаты_04кестесі[apr],ШығынСанаты_05кестесі[apr],ШығынСанаты_06кестесі[apr],ШығынСанаты_07кестесі[apr],ШығынСанаты_08кестесі[apr],ШығынСанаты_09кестесі[apr],ШығынСанаты_10кестесі[apr],ШығынСанаты_11кестесі[apr],ШығынСанаты_12кестесі[apr],ШығынСанаты_13кестесі[apr],ШығынСанаты_14кестесі[apr],ШығынСанаты_15кестесі[apr])","v":5858},{"$f":"SUM(ШығынСанаты_01кестесі[may],ШығынСанаты_02кестесі[may],ШығынСанаты_03кестесі[may],ШығынСанаты_04кестесі[may],ШығынСанаты_05кестесі[may],ШығынСанаты_06кестесі[may],ШығынСанаты_07кестесі[may],ШығынСанаты_08кестесі[may],ШығынСанаты_09кестесі[may],ШығынСанаты_10кестесі[may],ШығынСанаты_11кестесі[may],ШығынСанаты_12кестесі[may],ШығынСанаты_13кестесі[may],ШығынСанаты_14кестесі[may],ШығынСанаты_15кестесі[may])","v":5468},{"$f":"SUM(ШығынСанаты_01кестесі[jun],ШығынСанаты_02кестесі[jun],ШығынСанаты_03кестесі[jun],ШығынСанаты_04кестесі[jun],ШығынСанаты_05кестесі[jun],ШығынСанаты_06кестесі[jun],ШығынСанаты_07кестесі[jun],ШығынСанаты_08кестесі[jun],ШығынСанаты_09кестесі[jun],ШығынСанаты_10кестесі[jun],ШығынСанаты_11кестесі[jun],ШығынСанаты_12кестесі[jun],ШығынСанаты_13кестесі[jun],ШығынСанаты_14кестесі[jun],ШығынСанаты_15кестесі[jun])","v":5118},{"$f":"SUM(ШығынСанаты_01кестесі[jul],ШығынСанаты_02кестесі[jul],ШығынСанаты_03кестесі[jul],ШығынСанаты_04кестесі[jul],ШығынСанаты_05кестесі[jul],ШығынСанаты_06кестесі[jul],ШығынСанаты_07кестесі[jul],ШығынСанаты_08кестесі[jul],ШығынСанаты_09кестесі[jul],ШығынСанаты_10кестесі[jul],ШығынСанаты_11кестесі[jul],ШығынСанаты_12кестесі[jul],ШығынСанаты_13кестесі[jul],ШығынСанаты_14кестесі[jul],ШығынСанаты_15кестесі[jul])","v":5743},{"$f":"SUM(ШығынСанаты_01кестесі[aug],ШығынСанаты_02кестесі[aug],ШығынСанаты_03кестесі[aug],ШығынСанаты_04кестесі[aug],ШығынСанаты_05кестесі[aug],ШығынСанаты_06кестесі[aug],ШығынСанаты_07кестесі[aug],ШығынСанаты_08кестесі[aug],ШығынСанаты_09кестесі[aug],ШығынСанаты_10кестесі[aug],ШығынСанаты_11кестесі[aug],ШығынСанаты_12кестесі[aug],ШығынСанаты_13кестесі[aug],ШығынСанаты_14кестесі[aug],ШығынСанаты_15кестесі[aug])","v":5353},{"$f":"SUM(ШығынСанаты_01кестесі[sep],ШығынСанаты_02кестесі[sep],ШығынСанаты_03кестесі[sep],ШығынСанаты_04кестесі[sep],ШығынСанаты_05кестесі[sep],ШығынСанаты_06кестесі[sep],ШығынСанаты_07кестесі[sep],ШығынСанаты_08кестесі[sep],ШығынСанаты_09кестесі[sep],ШығынСанаты_10кестесі[sep],ШығынСанаты_11кестесі[sep],ШығынСанаты_12кестесі[sep],ШығынСанаты_13кестесі[sep],ШығынСанаты_14кестесі[sep],ШығынСанаты_15кестесі[sep])","v":5983},{"$f":"SUM(ШығынСанаты_01кестесі[oct],ШығынСанаты_02кестесі[oct],ШығынСанаты_03кестесі[oct],ШығынСанаты_04кестесі[oct],ШығынСанаты_05кестесі[oct],ШығынСанаты_06кестесі[oct],ШығынСанаты_07кестесі[oct],ШығынСанаты_08кестесі[oct],ШығынСанаты_09кестесі[oct],ШығынСанаты_10кестесі[oct],ШығынСанаты_11кестесі[oct],ШығынСанаты_12кестесі[oct],ШығынСанаты_13кестесі[oct],ШығынСанаты_14кестесі[oct],ШығынСанаты_15кестесі[oct])","v":5943},{"$f":"SUM(ШығынСанаты_01кестесі[nov],ШығынСанаты_02кестесі[nov],ШығынСанаты_03кестесі[nov],ШығынСанаты_04кестесі[nov],ШығынСанаты_05кестесі[nov],ШығынСанаты_06кестесі[nov],ШығынСанаты_07кестесі[nov],ШығынСанаты_08кестесі[nov],ШығынСанаты_09кестесі[nov],ШығынСанаты_10кестесі[nov],ШығынСанаты_11кестесі[nov],ШығынСанаты_12кестесі[nov],ШығынСанаты_13кестесі[nov],ШығынСанаты_14кестесі[nov],ШығынСанаты_15кестесі[nov])","v":5058},{"$f":"SUM(ШығынСанаты_01кестесі[dec],ШығынСанаты_02кестесі[dec],ШығынСанаты_03кестесі[dec],ШығынСанаты_04кестесі[dec],ШығынСанаты_05кестесі[dec],ШығынСанаты_06кестесі[dec],ШығынСанаты_07кестесі[dec],ШығынСанаты_08кестесі[dec],ШығынСанаты_09кестесі[dec],ШығынСанаты_10кестесі[dec],ШығынСанаты_11кестесі[dec],ШығынСанаты_12кестесі[dec],ШығынСанаты_13кестесі[dec],ШығынСанаты_14кестесі[dec],ШығынСанаты_15кестесі[dec])","v":4958},{"$f":"SUM(ШығынСанаты_01кестесі[year],ШығынСанаты_02кестесі[year],ШығынСанаты_03кестесі[year],ШығынСанаты_04кестесі[year],ШығынСанаты_05кестесі[year],ШығынСанаты_06кестесі[year],ШығынСанаты_07кестесі[year],ШығынСанаты_08кестесі[year],ШығынСанаты_09кестесі[year],ШығынСанаты_10кестесі[year],ШығынСанаты_11кестесі[year],ШығынСанаты_12кестесі[year],ШығынСанаты_13кестесі[year],ШығынСанаты_14кестесі[year],ШығынСанаты_15кестесі[year])","v":68594},{"$f":"O7/12","v":{"v":5716.166666666667,"d":"5716"}}]
[null,"Таза кіріс",{"$f":"C6-C7","v":-3714},{"$f":"D6-D7","v":3790},-1933,-1813,3532,-3593,-4243,1147,-1983,-1943,3942,-958,-7769,{"$f":"O8/12","v":{"v":-647.4166666666666,"d":"-647"}}]
[null,"ЖАЛПЫ АҚША АЙНАЛЫМЫ",{"$f":"C5+C6-C7","v":-2714},{"$f":"C9+D6-D7","v":1076},{"$f":"D9+E6-E7","v":-857},-2670,862,-2731,-6974,-5827,-7810,-9753,-5811,-6769]
[]
[]
[null,"кіріс"]
[null,"айлық және шайлық ақша",4000,4000,4000,4000,4000,1000,1000,1000,4000,4000,4000,4000,{"$f":"SUM(Кіріскестесі[[#This Row],[jan]:[dec]])","v":39000},{"$f":"Кіріскестесі[[#This Row],[year]]/12","v":3250}]
[null,"пайыздан келетін кіріс",222,33,null,45,null,25,{"$nulls":6},{"$f":"SUM(Кіріскестесі[[#This Row],[jan]:[dec]])","v":325},{"$f":"Кіріскестесі[[#This Row],[year]]/12","v":{"v":27.083333333333332,"d":"27"}}]
[null,"дивидендтер",null,5000,null,null,5000,null,null,5000,null,null,5000,null,{"$f":"SUM(Кіріскестесі[[#This Row],[jan]:[dec]])","v":20000},{"$f":"Кіріскестесі[[#This Row],[year]]/12","v":{"v":1666.6666666666667,"d":"1667"}}]
[null,"шығындарды өтеу/төлеп тастау",{"$nulls":5},500,500,500,{"$nulls":4},{"$f":"SUM(Кіріскестесі[[#This Row],[jan]:[dec]])","v":1500},{"$f":"Кіріскестесі[[#This Row],[year]]/12","v":125}]
[null,"өзге",{"$nulls":12},{"$f":"SUM(Кіріскестесі[[#This Row],[jan]:[dec]])","v":0},{"$f":"Кіріскестесі[[#This Row],[year]]/12","v":0}]
[null,"ЖАЛПЫ КІРІС",{"$f":"SUM(Кіріскестесі[jan])","v":4222},{"$f":"SUM(Кіріскестесі[feb])","v":9033},{"$f":"SUM(Кіріскестесі[mar])","v":4000},{"$f":"SUM(Кіріскестесі[apr])","v":4045},{"$f":"SUM(Кіріскестесі[may])","v":9000},{"$f":"SUM(Кіріскестесі[jun])","v":1525},{"$f":"SUM(Кіріскестесі[jul])","v":1500},{"$f":"SUM(Кіріскестесі[aug])","v":6500},{"$f":"SUM(Кіріскестесі[sep])","v":4000},{"$f":"SUM(Кіріскестесі[oct])","v":4000},{"$f":"SUM(Кіріскестесі[nov])","v":9000},{"$f":"SUM(Кіріскестесі[dec])","v":4000},{"$f":"SUM(Кіріскестесі[year])","v":60825},{"$f":"Кіріскестесі[[#Totals],[year]]/12","v":{"v":5068.75,"d":"5069"}}]
[]
[]
[null,"үй"]
[null,"ипотека/жалдау",850,850,850,850,850,850,850,850,850,850,900,900,{"$f":"SUM(ШығынСанаты_01кестесі[[#This Row],[jan]:[dec]])","v":10300},{"$f":"ШығынСанаты_01кестесі[[#This Row],[year]]/12","v":{"v":858.3333333333334,"d":"858"}}]
[null,"электр энергиясы",200,200,175,150,150,175,225,275,200,150,150,150,{"$f":"SUM(ШығынСанаты_01кестесі[[#This Row],[jan]:[dec]])","v":2200},{"$f":"ШығынСанаты_01кестесі[[#This Row],[year]]/12","v":{"v":183.33333333333334,"d":"183"}}]
[null,"телефон",50,50,100,100,50,50,100,100,50,50,50,50,{"$f":"SUM(ШығынСанаты_01кестесі[[#This Row],[jan]:[dec]])","v":800},{"$f":"ШығынСанаты_01кестесі[[#This Row],[year]]/12","v":{"v":66.66666666666667,"d":"67"}}]
[null,"кабель/спутник",69,69,69,69,69,69,69,69,69,69,69,69,{"$f":"SUM(ШығынСанаты_01кестесі[[#This Row],[jan]:[dec]])","v":828},{"$f":"ШығынСанаты_01кестесі[[#This Row],[year]]/12","v":69}]
[null,"интернет",39,39,39,39,39,39,39,39,39,39,39,39,{"$f":"SUM(ШығынСанаты_01кестесі[[#This Row],[jan]:[dec]])","v":468},{"$f":"ШығынСанаты_01кестесі[[#This Row],[year]]/12","v":39}]
[null,{"$f":"UPPER(\"ЖАЛПЫ \" & B21)","v":"ЖАЛПЫ ҮЙ"},{"$f":"SUM(ШығынСанаты_01кестесі[jan])","v":1208},{"$f":"SUM(ШығынСанаты_01кестесі[feb])","v":1208},{"$f":"SUM(ШығынСанаты_01кестесі[mar])","v":1233},{"$f":"SUM(ШығынСанаты_01кестесі[apr])","v":1208},{"$f":"SUM(ШығынСанаты_01кестесі[may])","v":1158},{"$f":"SUM(ШығынСанаты_01кестесі[jun])","v":1183},{"$f":"SUM(ШығынСанаты_01кестесі[jul])","v":1283},{"$f":"SUM(ШығынСанаты_01кестесі[aug])","v":1333},{"$f":"SUM(ШығынСанаты_01кестесі[sep])","v":1208},{"$f":"SUM(ШығынСанаты_01кестесі[oct])","v":1158},{"$f":"SUM(ШығынСанаты_01кестесі[nov])","v":1208},{"$f":"SUM(ШығынСанаты_01кестесі[dec])","v":1208},{"$f":"SUM(ШығынСанаты_01кестесі[year])","v":14596},{"$f":"ШығынСанаты_01кестесі[[#Totals],[year]]/12","v":{"v":1216.3333333333333,"d":"1216"}}]
[]
[]
[null,"күнделікті күнкөріс шығыны"]
[null,"Азық-түлік",345,250,200,400,350,250,400,350,250,400,350,250,{"$f":"SUM(ШығынСанаты_02кестесі[[#This Row],[jan]:[dec]])","v":3795},{"$f":"ШығынСанаты_02кестесі[[#This Row],[year]]/12","v":{"v":316.25,"d":"316"}}]
[null,"киім-кешек",300,null,null,300,null,null,300,null,null,300,null,null,{"$f":"SUM(ШығынСанаты_02кестесі[[#This Row],[jan]:[dec]])","v":1200},{"$f":"ШығынСанаты_02кестесі[[#This Row],[year]]/12","v":100}]
[null,"кешкі ас ішу/сырттан тамақтану",125,125,300,125,125,200,125,125,125,125,125,125,{"$f":"SUM(ШығынСанаты_02кестесі[[#This Row],[jan]:[dec]])","v":1750},{"$f":"ШығынСанаты_02кестесі[[#This Row],[year]]/12","v":{"v":145.83333333333334,"d":"146"}}]
[null,"салон/шаштараз",25,null,50,null,25,null,50,null,25,null,100,null,{"$f":"SUM(ШығынСанаты_02кестесі[[#This Row],[jan]:[dec]])","v":275},{"$f":"ШығынСанаты_02кестесі[[#This Row],[year]]/12","v":{"v":22.916666666666668,"d":"23"}}]
[null,"өзге",{"$nulls":12},{"$f":"SUM(ШығынСанаты_02кестесі[[#This Row],[jan]:[dec]])","v":0},{"$f":"ШығынСанаты_02кестесі[[#This Row],[year]]/12","v":0}]
[null,{"$f":"UPPER(\"ЖАЛПЫ \" & B30)","v":"ЖАЛПЫ КҮНДЕЛІКТІ КҮНКӨРІС ШЫҒЫНЫ"},{"$f":"SUM(ШығынСанаты_02кестесі[jan])","v":795},{"$f":"SUM(ШығынСанаты_02кестесі[feb])","v":375},{"$f":"SUM(ШығынСанаты_02кестесі[mar])","v":550},{"$f":"SUM(ШығынСанаты_02кестесі[apr])","v":825},{"$f":"SUM(ШығынСанаты_02кестесі[may])","v":500},{"$f":"SUM(ШығынСанаты_02кестесі[jun])","v":450},{"$f":"SUM(ШығынСанаты_02кестесі[jul])","v":875},{"$f":"SUM(ШығынСанаты_02кестесі[aug])","v":475},{"$f":"SUM(ШығынСанаты_02кестесі[sep])","v":400},{"$f":"SUM(ШығынСанаты_02кестесі[oct])","v":825},{"$f":"SUM(ШығынСанаты_02кестесі[nov])","v":575},{"$f":"SUM(ШығынСанаты_02кестесі[dec])","v":375},{"$f":"SUM(ШығынСанаты_02кестесі[year])","v":7020},{"$f":"ШығынСанаты_02кестесі[[#Totals],[year]]/12","v":585}]
[]
[]
[null,"балалар"]
[null,"сабақ жабдықтары",123,null,100,{"$nulls":4},345,{"$nulls":4},{"$f":"SUM(ШығынСанаты_03кестесі[[#This Row],[jan]:[dec]])","v":568},{"$f":"ШығынСанаты_03кестесі[[#This Row],[year]]/12","v":{"v":47.333333333333336,"d":"47"}}]
[null,"киім-кешек",null,100,null,null,100,{"$nulls":3},100,null,null,100,{"$f":"SUM(ШығынСанаты_03кестесі[[#This Row],[jan]:[dec]])","v":400},{"$f":"ШығынСанаты_03кестесі[[#This Row],[year]]/12","v":{"v":33.333333333333336,"d":"33"}}]
[null,"мектептегі түскі ас",50,50,50,50,50,50,null,null,50,50,50,50,{"$f":"SUM(ШығынСанаты_03кестесі[[#This Row],[jan]:[dec]])","v":500},{"$f":"ШығынСанаты_03кестесі[[#This Row],[year]]/12","v":{"v":41.666666666666664,"d":"42"}}]
[null,"дәрі-дәрмек",200,200,200,200,200,200,200,200,200,200,200,200,{"$f":"SUM(ШығынСанаты_03кестесі[[#This Row],[jan]:[dec]])","v":2400},{"$f":"ШығынСанаты_03кестесі[[#This Row],[year]]/12","v":200}]
[null,"өзге",2000,150,{"$nulls":3},200,{"$nulls":3},100,null,null,{"$f":"SUM(ШығынСанаты_03кестесі[[#This Row],[jan]:[dec]])","v":2450},{"$f":"ШығынСанаты_03кестесі[[#This Row],[year]]/12","v":{"v":204.16666666666666,"d":"204"}}]
[null,{"$f":"UPPER(\"ЖАЛПЫ \" & B39)","v":"ЖАЛПЫ БАЛАЛАР"},{"$f":"SUM(ШығынСанаты_03кестесі[jan])","v":2373},{"$f":"SUM(ШығынСанаты_03кестесі[feb])","v":500},{"$f":"SUM(ШығынСанаты_03кестесі[mar])","v":350},{"$f":"SUM(ШығынСанаты_03кестесі[apr])","v":250},{"$f":"SUM(ШығынСанаты_03кестесі[may])","v":350},{"$f":"SUM(ШығынСанаты_03кестесі[jun])","v":450},{"$f":"SUM(ШығынСанаты_03кестесі[jul])","v":200},{"$f":"SUM(ШығынСанаты_03кестесі[aug])","v":545},{"$f":"SUM(ШығынСанаты_03кестесі[sep])","v":350},{"$f":"SUM(ШығынСанаты_03кестесі[oct])","v":350},{"$f":"SUM(ШығынСанаты_03кестесі[nov])","v":250},{"$f":"SUM(ШығынСанаты_03кестесі[dec])","v":350},{"$f":"SUM(ШығынСанаты_03кестесі[year])","v":6318},{"$f":"ШығынСанаты_03кестесі[[#Totals],[year]]/12","v":{"v":526.5,"d":"527"}}]
[]
[]
[null,"көлік шығыны"]
[null,"көлік төлемдері",600,600,600,600,600,600,600,600,600,600,600,600,{"$f":"SUM(ШығынСанаты_04кестесі[[#This Row],[jan]:[dec]])","v":7200},{"$f":"ШығынСанаты_04кестесі[[#This Row],[year]]/12","v":600}]
[null,"жанармай",325,325,325,325,325,500,500,500,325,325,325,325,{"$f":"SUM(ШығынСанаты_04кестесі[[#This Row],[jan]:[dec]])","v":4425},{"$f":"ШығынСанаты_04кестесі[[#This Row],[year]]/12","v":{"v":368.75,"d":"369"}}]
[null,"жөндеулер",null,100,null,100,null,100,null,100,null,100,null,null,{"$f":"SUM(ШығынСанаты_04кестесі[[#This Row],[jan]:[dec]])","v":500},{"$f":"ШығынСанаты_04кестесі[[#This Row],[year]]/12","v":{"v":41.666666666666664,"d":"42"}}]
[null,"тіркеу/лицензия",185,{"$nulls":7},225,{"$nulls":3},{"$f":"SUM(ШығынСанаты_04кестесі[[#This Row],[jan]:[dec]])","v":410},{"$f":"ШығынСанаты_04кестесі[[#This Row],[year]]/12","v":{"v":34.166666666666664,"d":"34"}}]
[null,"өзге",{"$nulls":4},400,{"$nulls":7},{"$f":"SUM(ШығынСанаты_04кестесі[[#This Row],[jan]:[dec]])","v":400},{"$f":"ШығынСанаты_04кестесі[[#This Row],[year]]/12","v":{"v":33.333333333333336,"d":"33"}}]
[null,{"$f":"UPPER(\"ЖАЛПЫ \" & B48)","v":"ЖАЛПЫ КӨЛІК ШЫҒЫНЫ"},{"$f":"SUM(ШығынСанаты_04кестесі[jan])","v":1110},{"$f":"SUM(ШығынСанаты_04кестесі[feb])","v":1025},{"$f":"SUM(ШығынСанаты_04кестесі[mar])","v":925},{"$f":"SUM(ШығынСанаты_04кестесі[apr])","v":1025},{"$f":"SUM(ШығынСанаты_04кестесі[may])","v":1325},{"$f":"SUM(ШығынСанаты_04кестесі[jun])","v":1200},{"$f":"SUM(ШығынСанаты_04кестесі[jul])","v":1100},{"$f":"SUM(ШығынСанаты_04кестесі[aug])","v":1200},{"$f":"SUM(ШығынСанаты_04кестесі[sep])","v":1150},{"$f":"SUM(ШығынСанаты_04кестесі[oct])","v":1025},{"$f":"SUM(ШығынСанаты_04кестесі[nov])","v":925},{"$f":"SUM(ШығынСанаты_04кестесі[dec])","v":925},{"$f":"SUM(ШығынСанаты_04кестесі[year])","v":12935},{"$f":"ШығынСанаты_04кестесі[[#Totals],[year]]/12","v":{"v":1077.9166666666667,"d":"1078"}}]
[]
[]
[null,"денсаулық"]
[null,"дәрігер/тіс дәрігері",null,35,null,null,35,35,35,null,null,35,null,null,{"$f":"SUM(ШығынСанаты_05кестесі[[#This Row],[jan]:[dec]])","v":175},{"$f":"ШығынСанаты_05кестесі[[#This Row],[year]]/12","v":{"v":14.583333333333334,"d":"15"}}]
[null,"дәрі-дәрмек",25,25,25,25,25,25,25,25,25,25,25,25,{"$f":"SUM(ШығынСанаты_05кестесі[[#This Row],[jan]:[dec]])","v":300},{"$f":"ШығынСанаты_05кестесі[[#This Row],[year]]/12","v":25}]
[null,"өзге",null,null,150,{"$nulls":5},150,{"$nulls":3},{"$f":"SUM(ШығынСанаты_05кестесі[[#This Row],[jan]:[dec]])","v":300},{"$f":"ШығынСанаты_05кестесі[[#This Row],[year]]/12","v":25}]
[null,{"$f":"UPPER(\"ЖАЛПЫ \" & B57)","v":"ЖАЛПЫ ДЕНСАУЛЫҚ"},{"$f":"SUM(ШығынСанаты_05кестесі[jan])","v":25},{"$f":"SUM(ШығынСанаты_05кестесі[feb])","v":60},{"$f":"SUM(ШығынСанаты_05кестесі[mar])","v":175},{"$f":"SUM(ШығынСанаты_05кестесі[apr])","v":25},{"$f":"SUM(ШығынСанаты_05кестесі[may])","v":60},{"$f":"SUM(ШығынСанаты_05кестесі[jun])","v":60},{"$f":"SUM(ШығынСанаты_05кестесі[jul])","v":60},{"$f":"SUM(ШығынСанаты_05кестесі[aug])","v":25},{"$f":"SUM(ШығынСанаты_05кестесі[sep])","v":175},{"$f":"SUM(ШығынСанаты_05кестесі[oct])","v":60},{"$f":"SUM(ШығынСанаты_05кестесі[nov])","v":25},{"$f":"SUM(ШығынСанаты_05кестесі[dec])","v":25},{"$f":"SUM(ШығынСанаты_05кестесі[year])","v":775},{"$f":"ШығынСанаты_05кестесі[[#Totals],[year]]/12","v":{"v":64.58333333333333,"d":"65"}}]
[]
[]
[null,"сақтандыру"]
[null,"көлік",150,150,150,150,150,150,150,150,150,150,150,150,{"$f":"SUM(ШығынСанаты_06кестесі[[#This Row],[jan]:[dec]])","v":1800},{"$f":"ШығынСанаты_06кестесі[[#This Row],[year]]/12","v":150}]
[null,"денсаулық",675,675,675,675,675,675,675,675,675,675,675,675,{"$f":"SUM(ШығынСанаты_06кестесі[[#This Row],[jan]:[dec]])","v":8100},{"$f":"ШығынСанаты_06кестесі[[#This Row],[year]]/12","v":675}]
[null,"өмір",150,150,150,150,150,150,150,150,150,150,150,150,{"$f":"SUM(ШығынСанаты_06кестесі[[#This Row],[jan]:[dec]])","v":1800},{"$f":"ШығынСанаты_06кестесі[[#This Row],[year]]/12","v":150}]
[null,{"$f":"UPPER(\"ЖАЛПЫ \" & B64)","v":"ЖАЛПЫ САҚТАНДЫРУ"},{"$f":"SUM(ШығынСанаты_06кестесі[jan])","v":975},{"$f":"SUM(ШығынСанаты_06кестесі[feb])","v":975},{"$f":"SUM(ШығынСанаты_06кестесі[mar])","v":975},{"$f":"SUM(ШығынСанаты_06кестесі[apr])","v":975},{"$f":"SUM(ШығынСанаты_06кестесі[may])","v":975},{"$f":"SUM(ШығынСанаты_06кестесі[jun])","v":975},{"$f":"SUM(ШығынСанаты_06кестесі[jul])","v":975},{"$f":"SUM(ШығынСанаты_06кестесі[aug])","v":975},{"$f":"SUM(ШығынСанаты_06кестесі[sep])","v":975},{"$f":"SUM(ШығынСанаты_06кестесі[oct])","v":975},{"$f":"SUM(ШығынСанаты_06кестесі[nov])","v":975},{"$f":"SUM(ШығынСанаты_06кестесі[dec])","v":975},{"$f":"SUM(ШығынСанаты_06кестесі[year])","v":11700},{"$f":"ШығынСанаты_06кестесі[[#Totals],[year]]/12","v":975}]
[]
[]
[null,"білім"]
[null,"оқу ақысы",null,null,400,{"$nulls":5},400,{"$nulls":3},{"$f":"SUM(ШығынСанаты_07кестесі[[#This Row],[jan]:[dec]])","v":800},{"$f":"ШығынСанаты_07кестесі[[#This Row],[year]]/12","v":{"v":66.66666666666667,"d":"67"}}]
[null,"кітаптар",null,null,225,{"$nulls":5},225,{"$nulls":3},{"$f":"SUM(ШығынСанаты_07кестесі[[#This Row],[jan]:[dec]])","v":450},{"$f":"ШығынСанаты_07кестесі[[#This Row],[year]]/12","v":{"v":37.5,"d":"38"}}]
[null,"өзге",{"$nulls":12},{"$f":"SUM(ШығынСанаты_07кестесі[[#This Row],[jan]:[dec]])","v":0},{"$f":"ШығынСанаты_07кестесі[[#This Row],[year]]/12","v":0}]
[null,{"$f":"UPPER(\"ЖАЛПЫ \" & B71)","v":"ЖАЛПЫ БІЛІМ"},{"$f":"SUM(ШығынСанаты_07кестесі[jan])","v":0},{"$f":"SUM(ШығынСанаты_07кестесі[feb])","v":0},{"$f":"SUM(ШығынСанаты_07кестесі[mar])","v":625},{"$f":"SUM(ШығынСанаты_07кестесі[apr])","v":0},{"$f":"SUM(ШығынСанаты_07кестесі[may])","v":0},{"$f":"SUM(ШығынСанаты_07кестесі[jun])","v":0},{"$f":"SUM(ШығынСанаты_07кестесі[jul])","v":0},{"$f":"SUM(ШығынСанаты_07кестесі[aug])","v":0},{"$f":"SUM(ШығынСанаты_07кестесі[sep])","v":625},{"$f":"SUM(ШығынСанаты_07кестесі[oct])","v":0},{"$f":"SUM(ШығынСанаты_07кестесі[nov])","v":0},{"$f":"SUM(ШығынСанаты_07кестесі[dec])","v":0},{"$f":"SUM(ШығынСанаты_07кестесі[year])","v":1250},{"$f":"ШығынСанаты_07кестесі[[#Totals],[year]]/12","v":{"v":104.16666666666667,"d":"104"}}]
[]
[]
[null,"қайырымдылық"]
[null,"берілген сыйлықтар",null,100,{"$nulls":3},100,{"$nulls":3},100,null,null,{"$f":"SUM(ШығынСанаты_08кестесі[[#This Row],[jan]:[dec]])","v":300},{"$f":"ШығынСанаты_08кестесі[[#This Row],[year]]/12","v":25}]
[null,"қайырымдылық көмек",null,null,100,null,100,null,100,null,100,null,100,null,{"$f":"SUM(ШығынСанаты_08кестесі[[#This Row],[jan]:[dec]])","v":500},{"$f":"ШығынСанаты_08кестесі[[#This Row],[year]]/12","v":{"v":41.666666666666664,"d":"42"}}]
[null,"өзге",{"$nulls":3},100,{"$nulls":3},100,{"$nulls":3},100,{"$f":"SUM(ШығынСанаты_08кестесі[[#This Row],[jan]:[dec]])","v":300},{"$f":"ШығынСанаты_08кестесі[[#This Row],[year]]/12","v":25}]
[null,{"$f":"UPPER(\"ЖАЛПЫ \" & B78)","v":"ЖАЛПЫ ҚАЙЫРЫМДЫЛЫҚ"},{"$f":"SUM(ШығынСанаты_08кестесі[jan])","v":0},{"$f":"SUM(ШығынСанаты_08кестесі[feb])","v":100},{"$f":"SUM(ШығынСанаты_08кестесі[mar])","v":100},{"$f":"SUM(ШығынСанаты_08кестесі[apr])","v":100},{"$f":"SUM(ШығынСанаты_08кестесі[may])","v":100},{"$f":"SUM(ШығынСанаты_08кестесі[jun])","v":100},{"$f":"SUM(ШығынСанаты_08кестесі[jul])","v":100},{"$f":"SUM(ШығынСанаты_08кестесі[aug])","v":100},{"$f":"SUM(ШығынСанаты_08кестесі[sep])","v":100},{"$f":"SUM(ШығынСанаты_08кестесі[oct])","v":100},{"$f":"SUM(ШығынСанаты_08кестесі[nov])","v":100},{"$f":"SUM(ШығынСанаты_08кестесі[dec])","v":100},{"$f":"SUM(ШығынСанаты_08кестесі[year])","v":1100},{"$f":"ШығынСанаты_08кестесі[[#Totals],[year]]/12","v":{"v":91.66666666666667,"d":"92"}}]
[]
[]
[null,"жинақ"]
[null,"төтенше қор",100,100,100,100,100,{"$nulls":3},100,100,100,100,{"$f":"SUM(ШығынСанаты_09кестесі[[#This Row],[jan]:[dec]])","v":900},{"$f":"ШығынСанаты_09кестесі[[#This Row],[year]]/12","v":75}]
[null,"зейнетке шығу (401k, ira)",500,500,500,500,500,500,500,500,500,500,500,500,{"$f":"SUM(ШығынСанаты_09кестесі[[#This Row],[jan]:[dec]])","v":6000},{"$f":"ШығынСанаты_09кестесі[[#This Row],[year]]/12","v":500}]
[null,"жинақтау шотына аудару",200,200,200,200,200,{"$nulls":3},200,200,200,200,{"$f":"SUM(ШығынСанаты_09кестесі[[#This Row],[jan]:[dec]])","v":1800},{"$f":"ШығынСанаты_09кестесі[[#This Row],[year]]/12","v":150}]
[null,{"$f":"UPPER(\"ЖАЛПЫ \" & B85)","v":"ЖАЛПЫ ЖИНАҚ"},{"$f":"SUM(ШығынСанаты_09кестесі[jan])","v":800},{"$f":"SUM(ШығынСанаты_09кестесі[feb])","v":800},{"$f":"SUM(ШығынСанаты_09кестесі[mar])","v":800},{"$f":"SUM(ШығынСанаты_09кестесі[apr])","v":800},{"$f":"SUM(ШығынСанаты_09кестесі[may])","v":800},{"$f":"SUM(ШығынСанаты_09кестесі[jun])","v":500},{"$f":"SUM(ШығынСанаты_09кестесі[jul])","v":500},{"$f":"SUM(ШығынСанаты_09кестесі[aug])","v":500},{"$f":"SUM(ШығынСанаты_09кестесі[sep])","v":800},{"$f":"SUM(ШығынСанаты_09кестесі[oct])","v":800},{"$f":"SUM(ШығынСанаты_09кестесі[nov])","v":800},{"$f":"SUM(ШығынСанаты_09кестесі[dec])","v":800},{"$f":"SUM(ШығынСанаты_09кестесі[year])","v":8700},{"$f":"ШығынСанаты_09кестесі[[#Totals],[year]]/12","v":725}]
[]
[]
[null,"міндеттемелер"]
[null,"кредиттік карта #1",145,145,145,145,145,145,145,145,145,145,145,145,{"$f":"SUM(ШығынСанаты_10кестесі[[#This Row],[jan]:[dec]])","v":1740},{"$f":"ШығынСанаты_10кестесі[[#This Row],[year]]/12","v":145}]
[null,"федералды салықтар",450,null,null,450,null,null,450,null,null,450,null,null,{"$f":"SUM(ШығынСанаты_10кестесі[[#This Row],[jan]:[dec]])","v":1800},{"$f":"ШығынСанаты_10кестесі[[#This Row],[year]]/12","v":150}]
[null,"студент несиесі",55,55,55,55,55,55,55,55,55,55,55,55,{"$f":"SUM(ШығынСанаты_10кестесі[[#This Row],[jan]:[dec]])","v":660},{"$f":"ШығынСанаты_10кестесі[[#This Row],[year]]/12","v":55}]
[null,{"$f":"UPPER(\"ЖАЛПЫ \" & B92)","v":"ЖАЛПЫ МІНДЕТТЕМЕЛЕР"},{"$f":"SUM(ШығынСанаты_10кестесі[jan])","v":650},{"$f":"SUM(ШығынСанаты_10кестесі[feb])","v":200},{"$f":"SUM(ШығынСанаты_10кестесі[mar])","v":200},{"$f":"SUM(ШығынСанаты_10кестесі[apr])","v":650},{"$f":"SUM(ШығынСанаты_10кестесі[may])","v":200},{"$f":"SUM(ШығынСанаты_10кестесі[jun])","v":200},{"$f":"SUM(ШығынСанаты_10кестесі[jul])","v":650},{"$f":"SUM(ШығынСанаты_10кестесі[aug])","v":200},{"$f":"SUM(ШығынСанаты_10кестесі[sep])","v":200},{"$f":"SUM(ШығынСанаты_10кестесі[oct])","v":650},{"$f":"SUM(ШығынСанаты_10кестесі[nov])","v":200},{"$f":"SUM(ШығынСанаты_10кестесі[dec])","v":200},{"$f":"SUM(ШығынСанаты_10кестесі[year])","v":4200},{"$f":"ШығынСанаты_10кестесі[[#Totals],[year]]/12","v":350}]
[]
[]
[null," "]
[{"$nulls":14},{"$f":"SUM(ШығынСанаты_11кестесі[[#This Row],[jan]:[dec]])","v":0},{"$f":"ШығынСанаты_11кестесі[[#This Row],[year]]/12","v":0}]
[{"$nulls":14},{"$f":"SUM(ШығынСанаты_11кестесі[[#This Row],[jan]:[dec]])","v":0},{"$f":"ШығынСанаты_11кестесі[[#This Row],[year]]/12","v":0}]
[{"$nulls":14},{"$f":"SUM(ШығынСанаты_11кестесі[[#This Row],[jan]:[dec]])","v":0},{"$f":"ШығынСанаты_11кестесі[[#This Row],[year]]/12","v":0}]
[null,{"$f":"UPPER(\"ЖАЛПЫ \" & B99)","v":"ЖАЛПЫ  "},{"$f":"SUM(ШығынСанаты_11кестесі[jan])","v":0},{"$f":"SUM(ШығынСанаты_11кестесі[feb])","v":0},{"$f":"SUM(ШығынСанаты_11кестесі[mar])","v":0},{"$f":"SUM(ШығынСанаты_11кестесі[apr])","v":0},{"$f":"SUM(ШығынСанаты_11кестесі[may])","v":0},{"$f":"SUM(ШығынСанаты_11кестесі[jun])","v":0},{"$f":"SUM(ШығынСанаты_11кестесі[jul])","v":0},{"$f":"SUM(ШығынСанаты_11кестесі[aug])","v":0},{"$f":"SUM(ШығынСанаты_11кестесі[sep])","v":0},{"$f":"SUM(ШығынСанаты_11кестесі[oct])","v":0},{"$f":"SUM(ШығынСанаты_11кестесі[nov])","v":0},{"$f":"SUM(ШығынСанаты_11кестесі[dec])","v":0},{"$f":"SUM(ШығынСанаты_11кестесі[year])","v":0},{"$f":"ШығынСанаты_11кестесі[[#Totals],[year]]/12","v":0}]
[]
[]
[null," "]
[{"$nulls":14},{"$f":"SUM(ШығынСанаты_12кестесі[[#This Row],[jan]:[dec]])","v":0},{"$f":"ШығынСанаты_12кестесі[[#This Row],[year]]/12","v":0}]
[{"$nulls":14},{"$f":"SUM(ШығынСанаты_12кестесі[[#This Row],[jan]:[dec]])","v":0},{"$f":"ШығынСанаты_12кестесі[[#This Row],[year]]/12","v":0}]
[{"$nulls":14},{"$f":"SUM(ШығынСанаты_12кестесі[[#This Row],[jan]:[dec]])","v":0},{"$f":"ШығынСанаты_12кестесі[[#This Row],[year]]/12","v":0}]
[null,{"$f":"UPPER(\"ЖАЛПЫ \" & B106)","v":"ЖАЛПЫ  "},{"$f":"SUM(ШығынСанаты_12кестесі[jan])","v":0},{"$f":"SUM(ШығынСанаты_12кестесі[feb])","v":0},{"$f":"SUM(ШығынСанаты_12кестесі[mar])","v":0},{"$f":"SUM(ШығынСанаты_12кестесі[apr])","v":0},{"$f":"SUM(ШығынСанаты_12кестесі[may])","v":0},{"$f":"SUM(ШығынСанаты_12кестесі[jun])","v":0},{"$f":"SUM(ШығынСанаты_12кестесі[jul])","v":0},{"$f":"SUM(ШығынСанаты_12кестесі[aug])","v":0},{"$f":"SUM(ШығынСанаты_12кестесі[sep])","v":0},{"$f":"SUM(ШығынСанаты_12кестесі[oct])","v":0},{"$f":"SUM(ШығынСанаты_12кестесі[nov])","v":0},{"$f":"SUM(ШығынСанаты_12кестесі[dec])","v":0},{"$f":"SUM(ШығынСанаты_12кестесі[year])","v":0},{"$f":"ШығынСанаты_12кестесі[[#Totals],[year]]/12","v":0}]
[]
[]
[null," "]
[{"$nulls":14},{"$f":"SUM(ШығынСанаты_13кестесі[[#This Row],[jan]:[dec]])","v":0},{"$f":"ШығынСанаты_13кестесі[[#This Row],[year]]/12","v":0}]
[{"$nulls":14},{"$f":"SUM(ШығынСанаты_13кестесі[[#This Row],[jan]:[dec]])","v":0},{"$f":"ШығынСанаты_13кестесі[[#This Row],[year]]/12","v":0}]
[{"$nulls":14},{"$f":"SUM(ШығынСанаты_13кестесі[[#This Row],[jan]:[dec]])","v":0},{"$f":"ШығынСанаты_13кестесі[[#This Row],[year]]/12","v":0}]
[null,{"$f":"UPPER(\"ЖАЛПЫ \" & B113)","v":"ЖАЛПЫ  "},{"$f":"SUM(ШығынСанаты_13кестесі[jan])","v":0},{"$f":"SUM(ШығынСанаты_13кестесі[feb])","v":0},{"$f":"SUM(ШығынСанаты_13кестесі[mar])","v":0},{"$f":"SUM(ШығынСанаты_13кестесі[apr])","v":0},{"$f":"SUM(ШығынСанаты_13кестесі[may])","v":0},{"$f":"SUM(ШығынСанаты_13кестесі[jun])","v":0},{"$f":"SUM(ШығынСанаты_13кестесі[jul])","v":0},{"$f":"SUM(ШығынСанаты_13кестесі[aug])","v":0},{"$f":"SUM(ШығынСанаты_13кестесі[sep])","v":0},{"$f":"SUM(ШығынСанаты_13кестесі[oct])","v":0},{"$f":"SUM(ШығынСанаты_13кестесі[nov])","v":0},{"$f":"SUM(ШығынСанаты_13кестесі[dec])","v":0},{"$f":"SUM(ШығынСанаты_13кестесі[year])","v":0},{"$f":"ШығынСанаты_13кестесі[[#Totals],[year]]/12","v":0}]
[]
[]
[null," "]
[{"$nulls":14},{"$f":"SUM(ШығынСанаты_14кестесі[[#This Row],[jan]:[dec]])","v":0},{"$f":"ШығынСанаты_14кестесі[[#This Row],[year]]/12","v":0}]
[{"$nulls":14},{"$f":"SUM(ШығынСанаты_14кестесі[[#This Row],[jan]:[dec]])","v":0},{"$f":"ШығынСанаты_14кестесі[[#This Row],[year]]/12","v":0}]
[{"$nulls":14},{"$f":"SUM(ШығынСанаты_14кестесі[[#This Row],[jan]:[dec]])","v":0},{"$f":"ШығынСанаты_14кестесі[[#This Row],[year]]/12","v":0}]
[null,{"$f":"UPPER(\"ЖАЛПЫ \" & B120)","v":"ЖАЛПЫ  "},{"$f":"SUM(ШығынСанаты_14кестесі[jan])","v":0},{"$f":"SUM(ШығынСанаты_14кестесі[feb])","v":0},{"$f":"SUM(ШығынСанаты_14кестесі[mar])","v":0},{"$f":"SUM(ШығынСанаты_14кестесі[apr])","v":0},{"$f":"SUM(ШығынСанаты_14кестесі[may])","v":0},{"$f":"SUM(ШығынСанаты_14кестесі[jun])","v":0},{"$f":"SUM(ШығынСанаты_14кестесі[jul])","v":0},{"$f":"SUM(ШығынСанаты_14кестесі[aug])","v":0},{"$f":"SUM(ШығынСанаты_14кестесі[sep])","v":0},{"$f":"SUM(ШығынСанаты_14кестесі[oct])","v":0},{"$f":"SUM(ШығынСанаты_14кестесі[nov])","v":0},{"$f":"SUM(ШығынСанаты_14кестесі[dec])","v":0},{"$f":"SUM(ШығынСанаты_14кестесі[year])","v":0},{"$f":"ШығынСанаты_14кестесі[[#Totals],[year]]/12","v":0}]
[]
[]
[null," "]
[{"$nulls":14},{"$f":"SUM(ШығынСанаты_15кестесі[[#This Row],[jan]:[dec]])","v":0},{"$f":"ШығынСанаты_15кестесі[[#This Row],[year]]/12","v":0}]
[{"$nulls":14},{"$f":"SUM(ШығынСанаты_15кестесі[[#This Row],[jan]:[dec]])","v":0},{"$f":"ШығынСанаты_15кестесі[[#This Row],[year]]/12","v":0}]
[{"$nulls":14},{"$f":"SUM(ШығынСанаты_15кестесі[[#This Row],[jan]:[dec]])","v":0},{"$f":"ШығынСанаты_15кестесі[[#This Row],[year]]/12","v":0}]
[null,{"$f":"UPPER(\"ЖАЛПЫ \" & B127)","v":"ЖАЛПЫ  "},{"$f":"SUM(ШығынСанаты_15кестесі[jan])","v":0},{"$f":"SUM(ШығынСанаты_15кестесі[feb])","v":0},{"$f":"SUM(ШығынСанаты_15кестесі[mar])","v":0},{"$f":"SUM(ШығынСанаты_15кестесі[apr])","v":0},{"$f":"SUM(ШығынСанаты_15кестесі[may])","v":0},{"$f":"SUM(ШығынСанаты_15кестесі[jun])","v":0},{"$f":"SUM(ШығынСанаты_15кестесі[jul])","v":0},{"$f":"SUM(ШығынСанаты_15кестесі[aug])","v":0},{"$f":"SUM(ШығынСанаты_15кестесі[sep])","v":0},{"$f":"SUM(ШығынСанаты_15кестесі[oct])","v":0},{"$f":"SUM(ШығынСанаты_15кестесі[nov])","v":0},{"$f":"SUM(ШығынСанаты_15кестесі[dec])","v":0},{"$f":"SUM(ШығынСанаты_15кестесі[year])","v":0},{"$f":"ШығынСанаты_15кестесі[[#Totals],[year]]/12","v":0}]

{"sheet":"Баптау","index":2,"n_rows":59,"n_cols":10,"rows_kept":59}
[null,"АХМЕТОВТАР ЖАНҰЯСЫ 2012"]
[null,"кіріс",null,"шығындар"]
[null,"айлық және шайлық ақша",null," "]
[null,"пайыздан келетін кіріс",null,"үй",null,"үй",null,"күнделікті күнкөріс шығыны",null,"балалар"]
[null,"дивидендтер",null,"күнделікті күнкөріс шығыны",null,"ипотека/жалдау",null,"азық-түлік",null,"дәрі-дәрмек"]
[null,"алынған сыйлықтар",null,"балалар",null,"электр энергиясы",null,"жеке жабдықтар",null,"киім-кешек"]
[null,"шығындарды өтеу/төлеп тастау",null,"көлік шығыны",null,"газ/мұнай",null,"киім-кешек",null,"мектепте оқу ақысы"]
[null,"жинақтау шотынан аудару",null,"денсаулық",null,"су/канализация/қоқыс",null,"тазалау қызметі",null,"мектептегі түскі ас"]
[null,"өзге",null,"сақтандыру",null,"телефон",null,"кешкі ас ішу/сырттан тамақтану",null,"сабақ жабдықтары"]
[{"$nulls":3},"білім",null,"кабель/спутник",null,"құрғақ тазалау",null,"бала бағу"]
[{"$nulls":3},"қайырымдылық",null,"интернет",null,"салон/шаштараз",null,"ойыншықтар/ойындар"]
[{"$nulls":3},"жинақ",null,"жиһаз/ас үй құралдары",null,"өзге",null,"өзге"]
[{"$nulls":3},"міндеттемелер",null,"көгал/бақ"]
[{"$nulls":3},"ойын-сауық",null,"үй жабдықтары"]
[{"$nulls":3},"үй жануарлары",null,"жөндеу"]
[{"$nulls":3},"газет-журналға жазылу",null,"жақсартулар"]
[{"$nulls":3},"демалыс",null,"өзге"]
[{"$nulls":3},"әртүрлі нәрселер"]
[]
[{"$nulls":5},"көлік шығыны",null,"денсаулық",null,"сақтандыру"]
[{"$nulls":5},"көлік төлемдері",null,"дәрігер/тіс дәрігері",null,"көлік"]
[{"$nulls":5},"жанармай",null,"дәрі-дәрмек",null,"денсаулық"]
[{"$nulls":5},"автобус/такси/пойыз ақысы",null,"фитнес клуб төлемдері",null,"үй/жалдау"]
[{"$nulls":5},"жөндеулер",null,"төтенше шығындар",null,"өмір"]
[{"$nulls":5},"тіркеу/лицензия",null,"өзге",null,"өзге"]
[{"$nulls":5},"өзге"]
[]
[]
[{"$nulls":5},"білім",null,"қайырымдылық",null,"жинақ"]
[{"$nulls":5},"оқу ақысы",null,"берілген сыйлықтар",null,"төтенше қор"]
[{"$nulls":5},"кітаптар",null,"қайырымдылық көмек",null,"жинақтау шотына аудару"]
[{"$nulls":5},"музыка сабақтары",null,"діни көмек",null,"зейнетке шығу (401k, ira)"]
[{"$nulls":5},"өзге",null,"өзге",null,"инвестициялар"]
[{"$nulls":9},"колледж"]
[{"$nulls":9},"өзге"]
[]
[]
[{"$nulls":5},"міндеттемелер",null,"ойын-сауық",null,"үй жануарлары"]
[{"$nulls":5},"студент несиесі",null,"бейне фильмдер/двд дисктер",null,"тағам"]
[{"$nulls":5},"өзге несие",null,"музыка",null,"дәрі-дәрмек"]
[{"$nulls":5},"кредиттік карта #1",null,"ойындар",null,"ойыншықтар/жабдықтар"]
[{"$nulls":5},"кредиттік карта #2",null,"жалдау",null,"өзге"]
[{"$nulls":5},"кредиттік карта #3",null,"фильмдер/театр"]
[{"$nulls":5},"алимент/балаға күтім жасау шығыны",null,"концерттер/спектакльдер"]
[{"$nulls":5},"федералды салықтар",null,"кітаптар"]
[{"$nulls":5},"мүлік салығы",null,"хоббилер"]
[{"$nulls":5},"мемлекеттік/жергілікті салықтар",null,"фильм/фотосуреттер"]
[{"$nulls":5},"пәтер иелері ассоциациясының ақылары",null,"спорт"]
[{"$nulls":5},"заң қызметтерінің ақылары",null,"көшедегі ойын-сауық"]
[{"$nulls":5},"өзге",null,"көшедегі ойын-сауық"]
[{"$nulls":7},"өзге"]
[]
[{"$nulls":5},"газет-журналға жазылу",null,"демалыс",null,"әртүрлі нәрселер"]
[{"$nulls":5},"газет",null,"саяхат",null,"банк қызметінің ақылары"]
[{"$nulls":5},"журналдар",null,"тұрғын үй",null,"пошта қызметі"]
[{"$nulls":5},"төлемдер",null,"тағам",null,"өзге"]
[{"$nulls":5},"клубтық мүшелік ақы",null,"жалдамалы көлік"]
[{"$nulls":5},"өзге",null,"ойын-сауық"]
[{"$nulls":7},"өзге"]

{"sheet":"диаграмма деректер","index":3,"n_rows":40,"n_cols":16,"rows_kept":40,"hidden":true}
[null,"*** Бұл парақ жасырын қалуы тиіс ***"]
[]
[]
[null,"мерзім",3]
[]
[null,null,"қаң","ақп","нау","сәу","мам","мау","шіл","там","қыр","қаз","қар","жел","жыл","орт"]
[null,{"$f":"LOWER(Бюджет!B127)","v":" "},{"$f":"SUM(ШығынСанаты_15кестесі[jan])","v":0},{"$f":"SUM(ШығынСанаты_15кестесі[feb])","v":0},{"$f":"SUM(ШығынСанаты_15кестесі[mar])","v":0},{"$f":"SUM(ШығынСанаты_15кестесі[apr])","v":0},{"$f":"SUM(ШығынСанаты_15кестесі[may])","v":0},{"$f":"SUM(ШығынСанаты_15кестесі[jun])","v":0},{"$f":"SUM(ШығынСанаты_15кестесі[jul])","v":0},{"$f":"SUM(ШығынСанаты_15кестесі[aug])","v":0},{"$f":"SUM(ШығынСанаты_15кестесі[sep])","v":0},{"$f":"SUM(ШығынСанаты_15кестесі[oct])","v":0},{"$f":"SUM(ШығынСанаты_15кестесі[nov])","v":0},{"$f":"SUM(ШығынСанаты_15кестесі[dec])","v":0},{"$f":"SUM(ШығынСанаты_15кестесі[year])","v":0},{"$f":"SUM(ШығынСанаты_15кестесі[avg])","v":0}]
[null,{"$f":"LOWER(Бюджет!B120)","v":" "},{"$f":"SUM(ШығынСанаты_14кестесі[jan])","v":0},{"$f":"SUM(ШығынСанаты_14кестесі[feb])","v":0},{"$f":"SUM(ШығынСанаты_14кестесі[mar])","v":0},{"$f":"SUM(ШығынСанаты_14кестесі[apr])","v":0},{"$f":"SUM(ШығынСанаты_14кестесі[may])","v":0},{"$f":"SUM(ШығынСанаты_14кестесі[jun])","v":0},{"$f":"SUM(ШығынСанаты_14кестесі[jul])","v":0},{"$f":"SUM(ШығынСанаты_14кестесі[aug])","v":0},{"$f":"SUM(ШығынСанаты_14кестесі[sep])","v":0},{"$f":"SUM(ШығынСанаты_14кестесі[oct])","v":0},{"$f":"SUM(ШығынСанаты_14кестесі[nov])","v":0},{"$f":"SUM(ШығынСанаты_14кестесі[dec])","v":0},{"$f":"SUM(ШығынСанаты_14кестесі[year])","v":0},{"$f":"SUM(ШығынСанаты_14кестесі[avg])","v":0}]
[null,{"$f":"LOWER(Бюджет!B113)","v":" "},{"$f":"SUM(ШығынСанаты_13кестесі[jan])","v":0},{"$f":"SUM(ШығынСанаты_13кестесі[feb])","v":0},{"$f":"SUM(ШығынСанаты_13кестесі[mar])","v":0},{"$f":"SUM(ШығынСанаты_13кестесі[apr])","v":0},{"$f":"SUM(ШығынСанаты_13кестесі[may])","v":0},{"$f":"SUM(ШығынСанаты_13кестесі[jun])","v":0},{"$f":"SUM(ШығынСанаты_13кестесі[jul])","v":0},{"$f":"SUM(ШығынСанаты_13кестесі[aug])","v":0},{"$f":"SUM(ШығынСанаты_13кестесі[sep])","v":0},{"$f":"SUM(ШығынСанаты_13кестесі[oct])","v":0},{"$f":"SUM(ШығынСанаты_13кестесі[nov])","v":0},{"$f":"SUM(ШығынСанаты_13кестесі[dec])","v":0},{"$f":"SUM(ШығынСанаты_13кестесі[year])","v":0},{"$f":"SUM(ШығынСанаты_13кестесі[avg])","v":0}]
[null,{"$f":"LOWER(Бюджет!B106)","v":" "},{"$f":"SUM(ШығынСанаты_12кестесі[jan])","v":0},{"$f":"SUM(ШығынСанаты_12кестесі[feb])","v":0},{"$f":"SUM(ШығынСанаты_12кестесі[mar])","v":0},{"$f":"SUM(ШығынСанаты_12кестесі[apr])","v":0},{"$f":"SUM(ШығынСанаты_12кестесі[may])","v":0},{"$f":"SUM(ШығынСанаты_12кестесі[jun])","v":0},{"$f":"SUM(ШығынСанаты_12кестесі[jul])","v":0},{"$f":"SUM(ШығынСанаты_12кестесі[aug])","v":0},{"$f":"SUM(ШығынСанаты_12кестесі[sep])","v":0},{"$f":"SUM(ШығынСанаты_12кестесі[oct])","v":0},{"$f":"SUM(ШығынСанаты_12кестесі[nov])","v":0},{"$f":"SUM(ШығынСанаты_12кестесі[dec])","v":0},{"$f":"SUM(ШығынСанаты_12кестесі[year])","v":0},{"$f":"SUM(ШығынСанаты_12кестесі[avg])","v":0}]
[null,{"$f":"LOWER(Бюджет!B99)","v":" "},{"$f":"SUM(ШығынСанаты_11кестесі[jan])","v":0},{"$f":"SUM(ШығынСанаты_11кестесі[feb])","v":0},{"$f":"SUM(ШығынСанаты_11кестесі[mar])","v":0},{"$f":"SUM(ШығынСанаты_11кестесі[apr])","v":0},{"$f":"SUM(ШығынСанаты_11кестесі[may])","v":0},{"$f":"SUM(ШығынСанаты_11кестесі[jun])","v":0},{"$f":"SUM(ШығынСанаты_11кестесі[jul])","v":0},{"$f":"SUM(ШығынСанаты_11кестесі[aug])","v":0},{"$f":"SUM(ШығынСанаты_11кестесі[sep])","v":0},{"$f":"SUM(ШығынСанаты_11кестесі[oct])","v":0},{"$f":"SUM(ШығынСанаты_11кестесі[nov])","v":0},{"$f":"SUM(ШығынСанаты_11кестесі[dec])","v":0},{"$f":"SUM(ШығынСанаты_11кестесі[year])","v":0},{"$f":"SUM(ШығынСанаты_11кестесі[avg])","v":0}]
[null,{"$f":"LOWER(Бюджет!B92)","v":"міндеттемелер"},{"$f":"SUM(ШығынСанаты_10кестесі[jan])","v":650},{"$f":"SUM(ШығынСанаты_10кестесі[feb])","v":200},{"$f":"SUM(ШығынСанаты_10кестесі[mar])","v":200},{"$f":"SUM(ШығынСанаты_10кестесі[apr])","v":650},{"$f":"SUM(ШығынСанаты_10кестесі[may])","v":200},{"$f":"SUM(ШығынСанаты_10кестесі[jun])","v":200},{"$f":"SUM(ШығынСанаты_10кестесі[jul])","v":650},{"$f":"SUM(ШығынСанаты_10кестесі[aug])","v":200},{"$f":"SUM(ШығынСанаты_10кестесі[sep])","v":200},{"$f":"SUM(ШығынСанаты_10кестесі[oct])","v":650},{"$f":"SUM(ШығынСанаты_10кестесі[nov])","v":200},{"$f":"SUM(ШығынСанаты_10кестесі[dec])","v":200},{"$f":"SUM(ШығынСанаты_10кестесі[year])","v":{"v":4200,"d":"4,200"}},{"$f":"SUM(ШығынСанаты_10кестесі[avg])","v":350}]
[null,{"$f":"LOWER(Бюджет!B85)","v":"жинақ"},{"$f":"SUM(ШығынСанаты_09кестесі[jan])","v":800},{"$f":"SUM(ШығынСанаты_09кестесі[feb])","v":800},{"$f":"SUM(ШығынСанаты_09кестесі[mar])","v":800},{"$f":"SUM(ШығынСанаты_09кестесі[apr])","v":800},{"$f":"SUM(ШығынСанаты_09кестесі[may])","v":800},{"$f":"SUM(ШығынСанаты_09кестесі[jun])","v":500},{"$f":"SUM(ШығынСанаты_09кестесі[jul])","v":500},{"$f":"SUM(ШығынСанаты_09кестесі[aug])","v":500},{"$f":"SUM(ШығынСанаты_09кестесі[sep])","v":800},{"$f":"SUM(ШығынСанаты_09кестесі[oct])","v":800},{"$f":"SUM(ШығынСанаты_09кестесі[nov])","v":800},{"$f":"SUM(ШығынСанаты_09кестесі[dec])","v":800},{"$f":"SUM(ШығынСанаты_09кестесі[year])","v":{"v":8700,"d":"8,700"}},{"$f":"SUM(ШығынСанаты_09кестесі[avg])","v":725}]
[null,{"$f":"LOWER(Бюджет!B78)","v":"қайырымдылық"},{"$f":"SUM(ШығынСанаты_08кестесі[jan])","v":0},{"$f":"SUM(ШығынСанаты_08кестесі[feb])","v":100},{"$f":"SUM(ШығынСанаты_08кестесі[mar])","v":100},{"$f":"SUM(ШығынСанаты_08кестесі[apr])","v":100},{"$f":"SUM(ШығынСанаты_08кестесі[may])","v":100},{"$f":"SUM(ШығынСанаты_08кестесі[jun])","v":100},{"$f":"SUM(ШығынСанаты_08кестесі[jul])","v":100},{"$f":"SUM(ШығынСанаты_08кестесі[aug])","v":100},{"$f":"SUM(ШығынСанаты_08кестесі[sep])","v":100},{"$f":"SUM(ШығынСанаты_08кестесі[oct])","v":100},{"$f":"SUM(ШығынСанаты_08кестесі[nov])","v":100},{"$f":"SUM(ШығынСанаты_08кестесі[dec])","v":100},{"$f":"SUM(ШығынСанаты_08кестесі[year])","v":{"v":1100,"d":"1,100"}},{"$f":"SUM(ШығынСанаты_08кестесі[avg])","v":{"v":91.66666666666666,"d":"92"}}]
[null,{"$f":"LOWER(Бюджет!B71)","v":"білім"},{"$f":"SUM(ШығынСанаты_07кестесі[jan])","v":0},{"$f":"SUM(ШығынСанаты_07кестесі[feb])","v":0},{"$f":"SUM(ШығынСанаты_07кестесі[mar])","v":625},{"$f":"SUM(ШығынСанаты_07кестесі[apr])","v":0},{"$f":"SUM(ШығынСанаты_07кестесі[may])","v":0},{"$f":"SUM(ШығынСанаты_07кестесі[jun])","v":0},{"$f":"SUM(ШығынСанаты_07кестесі[jul])","v":0},{"$f":"SUM(ШығынСанаты_07кестесі[aug])","v":0},{"$f":"SUM(ШығынСанаты_07кестесі[sep])","v":625},{"$f":"SUM(ШығынСанаты_07кестесі[oct])","v":0},{"$f":"SUM(ШығынСанаты_07кестесі[nov])","v":0},{"$f":"SUM(ШығынСанаты_07кестесі[dec])","v":0},{"$f":"SUM(ШығынСанаты_07кестесі[year])","v":{"v":1250,"d":"1,250"}},{"$f":"SUM(ШығынСанаты_07кестесі[avg])","v":{"v":104.16666666666667,"d":"104"}}]
[null,{"$f":"LOWER(Бюджет!B64)","v":"сақтандыру"},{"$f":"SUM(ШығынСанаты_06кестесі[jan])","v":975},{"$f":"SUM(ШығынСанаты_06кестесі[feb])","v":975},{"$f":"SUM(ШығынСанаты_06кестесі[mar])","v":975},{"$f":"SUM(ШығынСанаты_06кестесі[apr])","v":975},{"$f":"SUM(ШығынСанаты_06кестесі[may])","v":975},{"$f":"SUM(ШығынСанаты_06кестесі[jun])","v":975},{"$f":"SUM(ШығынСанаты_06кестесі[jul])","v":975},{"$f":"SUM(ШығынСанаты_06кестесі[aug])","v":975},{"$f":"SUM(ШығынСанаты_06кестесі[sep])","v":975},{"$f":"SUM(ШығынСанаты_06кестесі[oct])","v":975},{"$f":"SUM(ШығынСанаты_06кестесі[nov])","v":975},{"$f":"SUM(ШығынСанаты_06кестесі[dec])","v":975},{"$f":"SUM(ШығынСанаты_06кестесі[year])","v":{"v":11700,"d":"11,700"}},{"$f":"SUM(ШығынСанаты_06кестесі[avg])","v":975}]
[null,{"$f":"LOWER(Бюджет!B57)","v":"денсаулық"},{"$f":"SUM(ШығынСанаты_05кестесі[jan])","v":25},{"$f":"SUM(ШығынСанаты_05кестесі[feb])","v":60},{"$f":"SUM(ШығынСанаты_05кестесі[mar])","v":175},{"$f":"SUM(ШығынСанаты_05кестесі[apr])","v":25},{"$f":"SUM(ШығынСанаты_05кестесі[may])","v":60},{"$f":"SUM(ШығынСанаты_05кестесі[jun])","v":60},{"$f":"SUM(ШығынСанаты_05кестесі[jul])","v":60},{"$f":"SUM(ШығынСанаты_05кестесі[aug])","v":25},{"$f":"SUM(ШығынСанаты_05кестесі[sep])","v":175},{"$f":"SUM(ШығынСанаты_05кестесі[oct])","v":60},{"$f":"SUM(ШығынСанаты_05кестесі[nov])","v":25},{"$f":"SUM(ШығынСанаты_05кестесі[dec])","v":25},{"$f":"SUM(ШығынСанаты_05кестесі[year])","v":775},{"$f":"SUM(ШығынСанаты_05кестесі[avg])","v":{"v":64.58333333333334,"d":"65"}}]
[null,{"$f":"LOWER(Бюджет!B48)","v":"көлік шығыны"},{"$f":"SUM(ШығынСанаты_04кестесі[jan])","v":{"v":1110,"d":"1,110"}},{"$f":"SUM(ШығынСанаты_04кестесі[feb])","v":{"v":1025,"d":"1,025"}},{"$f":"SUM(ШығынСанаты_04кестесі[mar])","v":925},{"$f":"SUM(ШығынСанаты_04кестесі[apr])","v":{"v":1025,"d":"1,025"}},{"$f":"SUM(ШығынСанаты_04кестесі[may])","v":{"v":1325,"d":"1,325"}},{"$f":"SUM(ШығынСанаты_04кестесі[jun])","v":{"v":1200,"d":"1,200"}},{"$f":"SUM(ШығынСанаты_04кестесі[jul])","v":{"v":1100,"d":"1,100"}},{"$f":"SUM(ШығынСанаты_04кестесі[aug])","v":{"v":1200,"d":"1,200"}},{"$f":"SUM(ШығынСанаты_04кестесі[sep])","v":{"v":1150,"d":"1,150"}},{"$f":"SUM(ШығынСанаты_04кестесі[oct])","v":{"v":1025,"d":"1,025"}},{"$f":"SUM(ШығынСанаты_04кестесі[nov])","v":925},{"$f":"SUM(ШығынСанаты_04кестесі[dec])","v":925},{"$f":"SUM(ШығынСанаты_04кестесі[year])","v":{"v":12935,"d":"12,935"}},{"$f":"SUM(ШығынСанаты_04кестесі[avg])","v":{"v":1077.9166666666665,"d":"1,078"}}]
[null,{"$f":"LOWER(Бюджет!B39)","v":"балалар"},{"$f":"SUM(ШығынСанаты_03кестесі[jan])","v":{"v":2373,"d":"2,373"}},{"$f":"SUM(ШығынСанаты_03кестесі[feb])","v":500},{"$f":"SUM(ШығынСанаты_03кестесі[mar])","v":350},{"$f":"SUM(ШығынСанаты_03кестесі[apr])","v":250},{"$f":"SUM(ШығынСанаты_03кестесі[may])","v":350},{"$f":"SUM(ШығынСанаты_03кестесі[jun])","v":450},{"$f":"SUM(ШығынСанаты_03кестесі[jul])","v":200},{"$f":"SUM(ШығынСанаты_03кестесі[aug])","v":545},{"$f":"SUM(ШығынСанаты_03кестесі[sep])","v":350},{"$f":"SUM(ШығынСанаты_03кестесі[oct])","v":350},{"$f":"SUM(ШығынСанаты_03кестесі[nov])","v":250},{"$f":"SUM(ШығынСанаты_03кестесі[dec])","v":350},{"$f":"SUM(ШығынСанаты_03кестесі[year])","v":{"v":6318,"d":"6,318"}},{"$f":"SUM(ШығынСанаты_03кестесі[avg])","v":{"v":526.5,"d":"527"}}]
[null,{"$f":"LOWER(Бюджет!B30)","v":"күнделікті күнкөріс шығыны"},{"$f":"SUM(ШығынСанаты_02кестесі[jan])","v":795},{"$f":"SUM(ШығынСанаты_02кестесі[feb])","v":375},{"$f":"SUM(ШығынСанаты_02кестесі[mar])","v":550},{"$f":"SUM(ШығынСанаты_02кестесі[apr])","v":825},{"$f":"SUM(ШығынСанаты_02кестесі[may])","v":500},{"$f":"SUM(ШығынСанаты_02кестесі[jun])","v":450},{"$f":"SUM(ШығынСанаты_02кестесі[jul])","v":875},{"$f":"SUM(ШығынСанаты_02кестесі[aug])","v":475},{"$f":"SUM(ШығынСанаты_02кестесі[sep])","v":400},{"$f":"SUM(ШығынСанаты_02кестесі[oct])","v":825},{"$f":"SUM(ШығынСанаты_02кестесі[nov])","v":575},{"$f":"SUM(ШығынСанаты_02кестесі[dec])","v":375},{"$f":"SUM(ШығынСанаты_02кестесі[year])","v":{"v":7020,"d":"7,020"}},{"$f":"SUM(ШығынСанаты_02кестесі[avg])","v":585}]
[null,{"$f":"LOWER(Бюджет!B21)","v":"үй"},{"$f":"SUM(ШығынСанаты_01кестесі[jan])","v":{"v":1208,"d":"1,208"}},{"$f":"SUM(ШығынСанаты_01кестесі[feb])","v":{"v":1208,"d":"1,208"}},{"$f":"SUM(ШығынСанаты_01кестесі[mar])","v":{"v":1233,"d":"1,233"}},{"$f":"SUM(ШығынСанаты_01кестесі[apr])","v":{"v":1208,"d":"1,208"}},{"$f":"SUM(ШығынСанаты_01кестесі[may])","v":{"v":1158,"d":"1,158"}},{"$f":"SUM(ШығынСанаты_01кестесі[jun])","v":{"v":1183,"d":"1,183"}},{"$f":"SUM(ШығынСанаты_01кестесі[jul])","v":{"v":1283,"d":"1,283"}},{"$f":"SUM(ШығынСанаты_01кестесі[aug])","v":{"v":1333,"d":"1,333"}},{"$f":"SUM(ШығынСанаты_01кестесі[sep])","v":{"v":1208,"d":"1,208"}},{"$f":"SUM(ШығынСанаты_01кестесі[oct])","v":{"v":1158,"d":"1,158"}},{"$f":"SUM(ШығынСанаты_01кестесі[nov])","v":{"v":1208,"d":"1,208"}},{"$f":"SUM(ШығынСанаты_01кестесі[dec])","v":{"v":1208,"d":"1,208"}},{"$f":"SUM(ШығынСанаты_01кестесі[year])","v":{"v":14596,"d":"14,596"}},{"$f":"SUM(ШығынСанаты_01кестесі[avg])","v":{"v":1216.3333333333335,"d":"1,216"}}]
[]
[]
[]
[]
[null,"Жинақталған ақша ағыны",{"$f":"SUM(Бюджет!$C$8:C$8)","v":{"v":-3714,"d":"-3,714"}},{"$f":"SUM(Бюджет!$C$8:D$8)","v":76},{"$f":"SUM(Бюджет!$C$8:E$8)","v":{"v":-1857,"d":"-1,857"}},{"$f":"SUM(Бюджет!$C$8:F$8)","v":{"v":-3670,"d":"-3,670"}},{"$f":"SUM(Бюджет!$C$8:G$8)","v":-138},{"$f":"SUM(Бюджет!$C$8:H$8)","v":{"v":-3731,"d":"-3,731"}},{"$f":"SUM(Бюджет!$C$8:I$8)","v":{"v":-7974,"d":"-7,974"}},{"$f":"SUM(Бюджет!$C$8:J$8)","v":{"v":-6827,"d":"-6,827"}},{"$f":"SUM(Бюджет!$C$8:K$8)","v":{"v":-8810,"d":"-8,810"}},{"$f":"SUM(Бюджет!$C$8:L$8)","v":{"v":-10753,"d":"-10,753"}},{"$f":"SUM(Бюджет!$C$8:M$8)","v":{"v":-6811,"d":"-6,811"}},{"$f":"SUM(Бюджет!$C$8:N$8)","v":{"v":-7769,"d":"-7,769"}},{"$f":"SUM(Бюджет!$C$8:O$8)","v":{"v":-15538,"d":"-15,538"}}]
[]
[null,"Жағымды жылдық ақша ағыны",{"$f":"IF(Бюджет!C$8<0,NA(),IF(кезең+2<>COLUMN(Бюджет!C$8),NA(),Бюджет!C$8))","v":{"$error":"#N/A"}},{"$f":"IF(Бюджет!D$8<0,NA(),IF(кезең+2<>COLUMN(Бюджет!D$8),NA(),Бюджет!D$8))","v":{"$error":"#N/A"}},{"$f":"IF(Бюджет!E$8<0,NA(),IF(кезең+2<>COLUMN(Бюджет!E$8),NA(),Бюджет!E$8))","v":{"$error":"#N/A"}},{"$f":"IF(Бюджет!F$8<0,NA(),IF(кезең+2<>COLUMN(Бюджет!F$8),NA(),Бюджет!F$8))","v":{"$error":"#N/A"}},{"$f":"IF(Бюджет!G$8<0,NA(),IF(кезең+2<>COLUMN(Бюджет!G$8),NA(),Бюджет!G$8))","v":{"$error":"#N/A"}},{"$f":"IF(Бюджет!H$8<0,NA(),IF(кезең+2<>COLUMN(Бюджет!H$8),NA(),Бюджет!H$8))","v":{"$error":"#N/A"}},{"$f":"IF(Бюджет!I$8<0,NA(),IF(кезең+2<>COLUMN(Бюджет!I$8),NA(),Бюджет!I$8))","v":{"$error":"#N/A"}},{"$f":"IF(Бюджет!J$8<0,NA(),IF(кезең+2<>COLUMN(Бюджет!J$8),NA(),Бюджет!J$8))","v":{"$error":"#N/A"}},{"$f":"IF(Бюджет!K$8<0,NA(),IF(кезең+2<>COLUMN(Бюджет!K$8),NA(),Бюджет!K$8))","v":{"$error":"#N/A"}},{"$f":"IF(Бюджет!L$8<0,NA(),IF(кезең+2<>COLUMN(Бюджет!L$8),NA(),Бюджет!L$8))","v":{"$error":"#N/A"}},{"$f":"IF(Бюджет!M$8<0,NA(),IF(кезең+2<>COLUMN(Бюджет!M$8),NA(),Бюджет!M$8))","v":{"$error":"#N/A"}},{"$f":"IF(Бюджет!N$8<0,NA(),IF(кезең+2<>COLUMN(Бюджет!N$8),NA(),Бюджет!N$8))","v":{"$error":"#N/A"}},{"$f":"IF(Бюджет!O$8<0,NA(),IF(кезең+2<>COLUMN(Бюджет!O$8),NA(),Бюджет!O$8))","v":{"$error":"#N/A"}}]
[null,"Жағымсыз жылдық ақша ағыны",{"$f":"IF(Бюджет!C$8>=0,NA(),IF(кезең+2<>COLUMN(Бюджет!C$8),NA(),Бюджет!C$8))","v":{"$error":"#N/A"}},{"$f":"IF(Бюджет!D$8>=0,NA(),IF(кезең+2<>COLUMN(Бюджет!D$8),NA(),Бюджет!D$8))","v":{"$error":"#N/A"}},{"$f":"IF(Бюджет!E$8>=0,NA(),IF(кезең+2<>COLUMN(Бюджет!E$8),NA(),Бюджет!E$8))","v":{"v":-1933,"d":"-1,933"}},{"$f":"IF(Бюджет!F$8>=0,NA(),IF(кезең+2<>COLUMN(Бюджет!F$8),NA(),Бюджет!F$8))","v":{"$error":"#N/A"}},{"$f":"IF(Бюджет!G$8>=0,NA(),IF(кезең+2<>COLUMN(Бюджет!G$8),NA(),Бюджет!G$8))","v":{"$error":"#N/A"}},{"$f":"IF(Бюджет!H$8>=0,NA(),IF(кезең+2<>COLUMN(Бюджет!H$8),NA(),Бюджет!H$8))","v":{"$error":"#N/A"}},{"$f":"IF(Бюджет!I$8>=0,NA(),IF(кезең+2<>COLUMN(Бюджет!I$8),NA(),Бюджет!I$8))","v":{"$error":"#N/A"}},{"$f":"IF(Бюджет!J$8>=0,NA(),IF(кезең+2<>COLUMN(Бюджет!J$8),NA(),Бюджет!J$8))","v":{"$error":"#N/A"}},{"$f":"IF(Бюджет!K$8>=0,NA(),IF(кезең+2<>COLUMN(Бюджет!K$8),NA(),Бюджет!K$8))","v":{"$error":"#N/A"}},{"$f":"IF(Бюджет!L$8>=0,NA(),IF(кезең+2<>COLUMN(Бюджет!L$8),NA(),Бюджет!L$8))","v":{"$error":"#N/A"}},{"$f":"IF(Бюджет!M$8>=0,NA(),IF(кезең+2<>COLUMN(Бюджет!M$8),NA(),Бюджет!M$8))","v":{"$error":"#N/A"}},{"$f":"IF(Бюджет!N$8>=0,NA(),IF(кезең+2<>COLUMN(Бюджет!N$8),NA(),Бюджет!N$8))","v":{"$error":"#N/A"}},{"$f":"IF(Бюджет!O$8>=0,NA(),IF(кезең+2<>COLUMN(Бюджет!O$8),NA(),Бюджет!O$8))","v":{"$error":"#N/A"}}]
{"$rows_empty":7}
[null,{"$f":"LOWER(көрсету_ұзақ_мерзім)","v":"наурыз"}]
[null,{"$f":"көрсету_ұзақ_мерзім & \" кіріс\"","v":"наурыз кіріс"},{"$f":"INDEX(Бюджет!$C$6:$P$6,,кезең)","v":{"v":4000,"d":"Т4,000"}}]
[null,{"$f":"көрсету_ұзақ_мерзім & \" шығындар: \" & TEXT(INDEX(Бюджет!$C$7:$P$7,,кезең),\"Т# ##0\")","v":"наурыз шығындар: Т5 933"},{"$f":"INDEX(Бюджет!$C$7:$P$7,,кезең)","v":{"v":5933,"d":"Т5,933"}}]
[null,{"$f":"көрсету_ұзақ_мерзім & \" ақша айналымы\"","v":"наурыз ақша айналымы"},{"$f":"ABS(INDEX(Бюджет!$C$8:$P$8,,кезең))","v":{"v":1933,"d":"Т1,933"}},{"$f":"REPT(\"-\",INDEX(Бюджет!$C$8:$P$8,,кезең)<0)","v":"-"}]